fUST/lending_fUST_20250101
["ID","MTS","AMOUNT","RATE_DAILY","PERIOD"]
[347314293,1735681837287,-926.38,0.0002,3]
[347314294,1735681837296,-683.0,0.0002,3]
[347314295,1735681837305,-715.77,0.0002,3]
[347314296,1735681837314,-511.31,0.0002,3]
[347314297,1735681837323,-500.0,0.0002,3]
[347314298,1735681837332,-1211.93,0.0002,3]
[347314299,1735681837341,-500.0,0.0002,3]
[347314300,1735681837350,-2700.84,0.0002,3]
[347314301,1735681837360,-521.15,0.0002,3]
[347314302,1735681837368,-500.0,0.0002,3]
[347314303,1735681837377,-500.0,0.0002,3]
[347314304,1735681837387,-802.62,0.0002,3]
[347314305,1735681837395,-500.0,0.0002,3]
[347314306,1735681837405,-612.25,0.0002,3]
[347314307,1735681837414,-500.0,0.0002,3]
[347314308,1735681837424,-500.0,0.0002,3]
[347314309,1735681837433,-500.0,0.0002,3]
[347314310,1735681837443,-500.0,0.0002,3]
[347314311,1735681837452,-4674.97,0.0002,3]
[347314312,1735681837462,-500.0,0.0002,3]
[347314313,1735681837471,-500.0,0.0002,3]
[347314314,1735681837480,-522.2,0.0002,3]
[347314315,1735681837488,-500.0,0.0002,3]
[347314316,1735681837498,-618.94,0.0002,3]
[347314317,1735681837507,-500.0,0.0002,3]
[347314318,1735681837517,-2189.99,0.0002,3]
[347314319,1735681837526,-791.33,0.0002,3]
[347314320,1735681837535,-500.0,0.0002,3]
[347314321,1735681837544,-19.70506268,0.0002,3]
[347314322,1735681837650,-480.29493732,0.0002,3]
[347314323,1735681837659,-500.0,0.0002,3]
[347314324,1735681837669,-1039.41,0.0002,3]
[347314325,1735681837679,-1645.65,0.0002,3]
[347314326,1735681837688,-500.0,0.0002,3]
[347314327,1735681837697,-500.0,0.0002,3]
[347314328,1735681837706,-409.84506268,0.0002,3]
[347314329,1735681837718,-90.15493732,0.0002,3]
[347314330,1735681837727,-500.0,0.0002,3]
[347314331,1735681837736,-547.02206268,0.0002,3]
[347314332,1735681837747,-500.85793732,0.0002,3]
[347314333,1735681837757,-500.0,0.0002,3]
[347314334,1735681837766,-499.49198268,0.0002,3]
[347314335,1735681837782,-390.12652895,0.0002,3]
[347314336,1735681837794,-3730.40148837,0.0002,3]
[347314337,1735681837803,-500.0,0.0002,3]
[347314338,1735681837812,-2742.12,0.0002,3]
[347314339,1735681837821,-500.0,0.0002,3]
[347314340,1735681837831,-500.0,0.0002,2]
[347314341,1735681837840,-991.29490329,0.00020111,2]
[347314342,1735681837851,-9169.80354238,0.00020111,2]
[347314343,1735681837862,-964.83054077,0.00020111,2]
[347314379,1735681838564,-531.94195269,0.00019178,2]
[347314381,1735681838574,-2676.20471636,0.00020111,2]
[347314384,1735681838587,-2840.88784338,0.00020111,2]
[347314386,1735681838596,-10189.67419014,0.00020122,2]
[347314388,1735681838605,-1308.02493573,0.000202,2]
[347314390,1735681838617,-517.5299952,0.000202,2]
[347314392,1735681838628,-566.10980878,0.000202,2]
[347314397,1735681838663,-2097.16526029,0.000202,2]
[347314399,1735681838672,-9072.32,0.000202,2]
[347314401,1735681838681,-371.38248927,0.00020273,3]
[347314403,1735681838690,-500.0,0.00020273,3]
[347314405,1735681838699,-500.0,0.00020273,3]
[347314407,1735681838708,-500.0,0.00020273,3]
[347314408,1735681838718,-500.0,0.00020273,3]
[347314409,1735681838727,-500.0,0.00020273,3]
[347314410,1735681838736,-500.0,0.00020273,3]
[347314411,1735681838745,-600.3,0.00020273,3]
[347314412,1735681838754,-500.0,0.00020273,3]
[347314413,1735681838763,-500.0,0.00020273,3]
[347314414,1735681838773,-500.0,0.00020273,3]
[347314415,1735681838782,-2869.51,0.00020273,3]
[347314416,1735681838791,-500.0,0.00020273,3]
[347314417,1735681838800,-500.0,0.00020273,3]
[347314418,1735681838810,-500.0,0.00020273,3]
[347314419,1735681838819,-500.0,0.00020273,3]
[347314420,1735681838828,-535.38,0.00020273,3]
[347314421,1735681838837,-464.0798702,0.00020273,3]
[347314422,1735681838846,-500.0,0.00020273,3]
[347314423,1735681838855,-500.0,0.00020273,3]
[347314424,1735681838864,-1371.67,0.00020273,3]
[347314425,1735681838873,-501.04,0.00020273,3]
[347314426,1735681838883,-598.98,0.00020273,3]
[347314427,1735681838892,-500.0,0.00020273,3]
[347314428,1735681838901,-548.87,0.00020273,3]
[347314429,1735681838910,-500.0,0.00020273,3]
[347314430,1735681838919,-500.0,0.00020273,3]
[347314431,1735681838928,-500.0,0.00020273,3]
[347314432,1735681838941,-500.0,0.00020273,3]
[347314433,1735681838950,-730.65,0.00020273,3]
[347314434,1735681838960,-530.04,0.00020273,3]
[347314435,1735681838969,-500.0,0.00020273,3]
[347314436,1735681838979,-500.0,0.00020273,3]
[347314437,1735681838987,-500.0,0.00020273,3]
[347314438,1735681838996,-500.0,0.00020273,3]
[347314439,1735681839005,-500.0,0.00020273,3]
[347314441,1735681839015,-500.0,0.00020273,3]
[347314443,1735681839024,-500.0,0.00020273,3]
[347314445,1735681839033,-1588.43,0.00020273,3]
[347314447,1735681839042,-500.0,0.00020273,3]
[347314449,1735681839051,-500.0,0.00020273,3]
[347314451,1735681839060,-500.0,0.00020273,3]
[347314453,1735681839069,-500.0,0.00020273,3]
[347314455,1735681839078,-500.0,0.00020273,3]
[347314457,1735681839087,-500.0,0.00020273,3]
[347314459,1735681839096,-500.0,0.00020273,3]
[347314461,1735681839105,-501.98,0.00020273,3]
[347314463,1735681839115,-730.1,0.00020273,3]
[347314465,1735681839123,-20519.54,0.00020273,3]
[347314467,1735681839132,-500.0,0.00020273,3]
[347314469,1735681839142,-500.0,0.00020273,3]
[347314471,1735681839151,-836.29,0.00020273,3]
[347314473,1735681839160,-500.0,0.00020273,3]
[347314475,1735681839169,-500.0,0.00020273,3]
[347314477,1735681839179,-926.38,0.00020273,3]
[347314479,1735681839188,-683.0,0.00020273,3]
[347314481,1735681839197,-715.77,0.00020273,3]
[347314483,1735681839206,-511.31,0.00020273,3]
[347314485,1735681839215,-500.0,0.00020273,3]
[347314488,1735681839232,-1211.93,0.00020273,3]
[347314490,1735681839244,-500.0,0.00020273,3]
[347314492,1735681839253,-2700.84,0.00020273,3]
[347314494,1735681839263,-521.15,0.00020273,3]
[347314496,1735681839272,-500.0,0.00020273,3]
[347314498,1735681839282,-500.0,0.00020273,3]
[347314500,1735681839291,-802.62,0.00020273,3]
[347314502,1735681839301,-500.0,0.00020273,3]
[347314504,1735681839311,-612.25,0.00020273,3]
[347314506,1735681839322,-500.0,0.00020273,3]
[347314508,1735681839332,-500.0,0.00020273,3]
[347314511,1735681839343,-500.0,0.00020273,3]
[347314513,1735681839352,-500.0,0.00020273,3]
[347314515,1735681839361,-4674.97,0.00020273,3]
[347314517,1735681839371,-500.0,0.00020273,3]
[347314519,1735681839380,-500.0,0.00020273,3]
[347314521,1735681839389,-522.2,0.00020273,3]
[347314523,1735681839399,-618.94,0.00020273,3]
[347314525,1735681839409,-500.0,0.00020273,3]
[347314527,1735681839418,-2189.99,0.00020273,3]
[347314529,1735681839428,-791.33,0.00020273,3]
[347314531,1735681839437,-500.0,0.00020273,3]
[347314533,1735681839447,-500.0,0.00020273,3]
[347314535,1735681839456,-499.0,0.00020273,2]
[347314537,1735681839465,-500.0,0.00020273,3]
[347314539,1735681839476,-1039.41,0.00020273,3]
[347314541,1735681839485,-1645.65,0.00020273,3]
[347314543,1735681839494,-500.0,0.00020273,3]
[347314545,1735681839503,-500.0,0.00020273,3]
[347314547,1735681839513,-500.0,0.00020273,3]
[347314549,1735681839522,-500.0,0.00020273,3]
[347314551,1735681839531,-1047.88,0.00020273,3]
[347314553,1735681839541,-500.0,0.00020273,3]
[347314555,1735681839550,-500.0,0.00020273,3]
[347314557,1735681839559,-4620.02,0.00020273,3]
[347314559,1735681839568,-2742.12,0.00020273,3]
[347314561,1735681839578,-243.41979682,0.00020273,3]
[347314563,1735681839587,-271.71003972,0.00020273,2]
[347314565,1735681839597,-10189.67419014,0.00020296,2]
[347314567,1735681839606,-153.0,0.00020456,2]
[347314569,1735681839615,-10189.67419014,0.0002047,2]
[347314572,1735681839625,-150.0,0.000205,2]
[347314574,1735681839634,-534.0,0.000205,2]
[347314576,1735681839645,-2093.0,0.000205,2]
[347314578,1735681839655,-2348.0,0.000205,2]
[347314580,1735681839665,-158.281406,0.00020521,2]
[347314582,1735681839675,-285.8008783,0.00020546,2]
[347314584,1735681839684,-500.0,0.00020547,3]
[347314586,1735681839694,-500.0,0.00020547,3]
[347314588,1735681839704,-500.0,0.00020547,3]
[347314590,1735681839713,-500.0,0.00020547,3]
[347314592,1735681839722,-500.0,0.00020547,3]
[347314594,1735681839731,-463.87156402,0.00020547,3]
[347314596,1735681839740,-600.3,0.00020547,3]
[347314598,1735681839750,-212.22994258,0.00020547,3]
[347314600,1735681839760,-500.0,0.00020547,3]
[347314602,1735681839769,-500.0,0.00020547,3]
[347314604,1735681839778,-2869.51,0.00020547,3]
[347314606,1735681839788,-500.0,0.00020547,3]
[347314608,1735681839797,-500.0,0.00020547,3]
[347314610,1735681839806,-500.0,0.00020547,3]
[347314612,1735681839816,-500.0,0.00020547,3]
[347314614,1735681839826,-535.38,0.00020547,3]
[347314617,1735681839836,-500.0,0.00020547,3]
[347314619,1735681839845,-500.0,0.00020547,3]
[347314621,1735681839854,-1371.67,0.00020547,3]
[347314623,1735681839863,-501.04,0.00020547,3]
[347314625,1735681839873,-598.98,0.00020547,3]
[347314627,1735681839882,-500.0,0.00020547,3]
[347314629,1735681839891,-548.87,0.00020547,3]
[347314631,1735681839900,-500.0,0.00020547,3]
[347314633,1735681839910,-500.0,0.00020547,3]
[347314635,1735681839919,-500.0,0.00020547,3]
[347314637,1735681839931,-730.65,0.00020547,3]
[347314639,1735681839941,-530.04,0.00020547,3]
[347314641,1735681839950,-500.0,0.00020547,3]
[347314643,1735681839959,-500.0,0.00020547,3]
[347314645,1735681839970,-500.0,0.00020547,3]
[347314646,1735681839979,-500.0,0.00020547,3]
[347314649,1735681839989,-500.0,0.00020547,3]
[347314651,1735681839998,-377.09732389,0.00020547,3]
[347314653,1735681840010,-1588.43,0.00020547,3]
[347314654,1735681840020,-500.0,0.00020547,3]
[347314656,1735681840029,-385.88818169,0.00020547,3]
[347314660,1735681840038,-500.0,0.00020547,3]
[347314661,1735681840047,-500.0,0.00020547,3]
[347314663,1735681840057,-500.0,0.00020547,3]
[347314664,1735681840066,-500.0,0.00020547,3]
[347314666,1735681840076,-500.0,0.00020547,3]
[347314668,1735681840086,-501.98,0.00020547,3]
[347314670,1735681840096,-795.01,0.00020547,3]
[347314672,1735681840105,-730.1,0.00020547,3]
[347314673,1735681840115,-20519.54,0.00020547,3]
[347314676,1735681840124,-500.0,0.00020547,3]
[347314678,1735681840134,-500.0,0.00020547,3]
[347314680,1735681840144,-836.29,0.00020547,3]
[347314683,1735681840154,-500.0,0.00020547,3]
[347314703,1735681840300,-500.0,0.00020547,3]
[347314705,1735681840309,-926.38,0.00020547,3]
[347314707,1735681840319,-683.0,0.00020547,3]
[347314709,1735681840328,-715.77,0.00020547,3]
[347314710,1735681840338,-511.31,0.00020547,3]
[347314713,1735681840348,-500.0,0.00020547,3]
[347314714,1735681840357,-1211.93,0.00020547,3]
[347314716,1735681840367,-500.0,0.00020547,3]
[347314718,1735681840376,-2700.84,0.00020547,3]
[347314720,1735681840386,-521.15,0.00020547,3]
[347314722,1735681840395,-610.84202875,0.00020547,3]
[347314724,1735681840404,-500.0,0.00020547,3]
[347314726,1735681840413,-802.62,0.00020547,3]
[347314728,1735681840425,-500.0,0.00020547,3]
[347314730,1735681840434,-500.0,0.00020547,3]
[347314732,1735681840444,-500.0,0.00020547,3]
[347314733,1735681840454,-612.25,0.00020547,3]
[347314735,1735681840463,-500.0,0.00020547,3]
[347314737,1735681840472,-500.0,0.00020547,3]
[347314739,1735681840481,-4674.97,0.00020547,3]
[347314741,1735681840490,-500.0,0.00020547,3]
[347314743,1735681840499,-500.0,0.00020547,3]
[347314745,1735681840509,-522.2,0.00020547,3]
[347314747,1735681840519,-618.94,0.00020547,3]
[347314749,1735681840528,-500.0,0.00020547,3]
[347314751,1735681840537,-2189.99,0.00020547,3]
[347314753,1735681840547,-791.33,0.00020547,3]
[347314755,1735681840556,-500.0,0.00020547,3]
[347314757,1735681840566,-500.0,0.00020547,3]
[347314759,1735681840575,-1039.41,0.00020547,3]
[347314761,1735681840584,-1645.65,0.00020547,3]
[347314763,1735681840593,-500.0,0.00020547,3]
[347314765,1735681840603,-500.0,0.00020547,3]
[347314767,1735681840612,-500.0,0.00020547,3]
[347314769,1735681840621,-500.0,0.00020547,3]
[347314771,1735681840631,-1047.88,0.00020547,3]
[347314773,1735681840640,-500.0,0.00020547,3]
[347314775,1735681840651,-500.0,0.00020547,3]
[347314776,1735681840660,-4620.02,0.00020547,3]
[347314778,1735681840670,-2742.12,0.00020547,3]
[347314780,1735681840682,-10189.67419014,0.00020644,2]
[347314782,1735681840691,-158.281406,0.00020776,2]
[347314783,1735681840700,-187.0,0.000208,2]
[347314785,1735681840710,-150.0,0.000208,2]
[347314787,1735681840719,-10189.67419014,0.00020818,2]
[347314788,1735681840728,-500.0,0.00020821,3]
[347314790,1735681840738,-500.0,0.00020821,3]
[347314792,1735681840747,-500.0,0.00020821,3]
[347314794,1735681840756,-500.0,0.00020821,3]
[347314796,1735681840766,-500.0,0.00020821,3]
[347314798,1735681840775,-600.3,0.00020821,3]
[347314800,1735681840785,-500.0,0.00020821,3]
[347314802,1735681840794,-500.0,0.00020821,3]
[347314804,1735681840804,-2869.51,0.00020821,3]
[347314806,1735681840813,-500.0,0.00020821,3]
[347314808,1735681840822,-500.0,0.00020821,3]
[347314810,1735681840832,-500.0,0.00020821,3]
[347314812,1735681840841,-500.0,0.00020821,3]
[347314814,1735681840851,-535.38,0.00020821,3]
[347314816,1735681840860,-500.0,0.00020821,3]
[347314818,1735681840869,-325.02012679,0.00020821,3]
[347314820,1735681840879,-1371.67,0.00020821,3]
[347314822,1735681840888,-501.04,0.00020821,3]
[347314824,1735681840898,-598.98,0.00020821,3]
[347314826,1735681840907,-500.0,0.00020821,3]
[347314828,1735681840917,-548.87,0.00020821,3]
[347314830,1735681840927,-500.0,0.00020821,3]
[347314832,1735681840940,-500.0,0.00020821,3]
[347314834,1735681840949,-500.0,0.00020821,3]
[347314836,1735681840958,-730.65,0.00020821,3]
[347314838,1735681840967,-530.04,0.00020821,3]
[347314840,1735681840978,-500.0,0.00020821,3]
[347314842,1735681840987,-500.0,0.00020821,3]
[347314844,1735681840996,-500.0,0.00020821,3]
[347314846,1735681841006,-500.0,0.00020821,3]
[347314848,1735681841016,-500.0,0.00020821,3]
[347314850,1735681841025,-1588.43,0.00020821,3]
[347314852,1735681841034,-500.0,0.00020821,3]
[347314854,1735681841043,-500.0,0.00020821,3]
[347314856,1735681841053,-500.0,0.00020821,3]
[347314858,1735681841063,-500.0,0.00020821,3]
[347314860,1735681841073,-500.0,0.00020821,3]
[347314862,1735681841082,-500.0,0.00020821,3]
[347314864,1735681841091,-501.98,0.00020821,3]
[347314866,1735681841101,-795.01,0.00020821,3]
[347314868,1735681841110,-730.1,0.00020821,3]
[347314870,1735681841120,-20519.54,0.00020821,3]
[347314872,1735681841129,-500.0,0.00020821,3]
[347314874,1735681841138,-500.0,0.00020821,3]
[347314876,1735681841148,-836.29,0.00020821,3]
[347314878,1735681841157,-500.0,0.00020821,3]
[347314880,1735681841166,-500.0,0.00020821,3]
[347314882,1735681841178,-926.38,0.00020821,3]
[347314884,1735681841187,-683.0,0.00020821,3]
[347314887,1735681841197,-715.77,0.00020821,3]
[347314888,1735681841206,-511.31,0.00020821,3]
[347314890,1735681841215,-500.0,0.00020821,3]
[347314892,1735681841224,-1211.93,0.00020821,3]
[347314894,1735681841233,-513.03922937,0.00020821,3]
[347314896,1735681841242,-2700.84,0.00020821,3]
[347314898,1735681841251,-521.15,0.00020821,3]
[347314900,1735681841260,-500.0,0.00020821,3]
[347314902,1735681841269,-802.62,0.00020821,3]
[347314904,1735681841278,-500.0,0.00020821,3]
[347314906,1735681841287,-500.0,0.00020821,3]
[347314908,1735681841296,-500.0,0.00020821,3]
[347314910,1735681841306,-612.25,0.00020821,3]
[347314912,1735681841315,-500.0,0.00020821,3]
[347314913,1735681841324,-500.0,0.00020821,3]
[347314914,1735681841334,-4674.97,0.00020821,3]
[347314917,1735681841344,-336.8725626,0.00020821,3]
[347314919,1735681841354,-500.0,0.00020821,3]
[347314921,1735681841363,-522.2,0.00020821,3]
[347314923,1735681841373,-618.94,0.00020821,3]
[347314925,1735681841382,-500.0,0.00020821,3]
[347314927,1735681841391,-2189.99,0.00020821,3]
[347314929,1735681841399,-791.33,0.00020821,3]
[347314931,1735681841408,-500.0,0.00020821,3]
[347314932,1735681841417,-500.0,0.00020821,3]
[347314935,1735681841428,-1039.41,0.00020821,3]
[347314937,1735681841437,-1645.65,0.00020821,3]
[347314938,1735681841446,-500.0,0.00020821,3]
[347314940,1735681841455,-500.0,0.00020821,3]
[347314942,1735681841465,-500.0,0.00020821,3]
[347314944,1735681841474,-500.0,0.00020821,3]
[347314946,1735681841483,-1047.88,0.00020821,3]
[347314948,1735681841492,-500.0,0.00020821,3]
[347314950,1735681841501,-500.0,0.00020821,3]
[347314952,1735681841510,-4620.02,0.00020821,3]
[347314954,1735681841519,-2742.12,0.00020821,3]
[347314956,1735681841529,-1799.13,0.000209,2]
[347314959,1735681841538,-2771.5918909,0.00020946,5]
[347314961,1735681841547,-10189.67419014,0.00020992,2]
[347314963,1735681841558,-2500.0,0.00021022,2]
[347314965,1735681841567,-2500.0,0.00021031,2]
[347314967,1735681841576,-158.281406,0.00021032,2]
[347314969,1735681841585,-500.0,0.00021095,3]
[347314971,1735681841594,-500.0,0.00021095,3]
[347314973,1735681841603,-500.0,0.00021095,3]
[347314975,1735681841613,-500.0,0.00021095,3]
[347314977,1735681841622,-500.0,0.00021095,3]
[347314979,1735681841631,-600.3,0.00021095,3]
[347314981,1735681841640,-500.0,0.00021095,3]
[347314983,1735681841649,-500.0,0.00021095,3]
[347314985,1735681841658,-2869.51,0.00021095,3]
[347314987,1735681841667,-500.0,0.00021095,3]
[347314989,1735681841677,-500.0,0.00021095,3]
[347314991,1735681841686,-500.0,0.00021095,3]
[347314992,1735681841695,-500.0,0.00021095,3]
[347314994,1735681841704,-535.38,0.00021095,3]
[347314996,1735681841713,-500.0,0.00021095,3]
[347314998,1735681841723,-1371.67,0.00021095,3]
[347315001,1735681841732,-501.04,0.00021095,3]
[347315003,1735681841741,-598.98,0.00021095,3]
[347315005,1735681841750,-500.0,0.00021095,3]
[347315006,1735681841759,-548.87,0.00021095,3]
[347315008,1735681841768,-368.71250237,0.00021095,3]
[347315010,1735681841778,-500.0,0.00021095,3]
[347315012,1735681841787,-500.0,0.00021095,3]
[347315014,1735681841797,-730.65,0.00021095,3]
[347315017,1735681841806,-530.04,0.00021095,3]
[347315018,1735681841815,-500.0,0.00021095,3]
[347315020,1735681841825,-500.0,0.00021095,3]
[347315022,1735681841834,-500.0,0.00021095,3]
[347315024,1735681841843,-500.0,0.00021095,3]
[347315027,1735681841852,-500.0,0.00021095,3]
[347315028,1735681841863,-1588.43,0.00021095,3]
[347315030,1735681841872,-373.54127789,0.00021095,3]
[347315032,1735681841881,-500.0,0.00021095,3]
[347315034,1735681841890,-500.0,0.00021095,3]
[347315036,1735681841899,-500.0,0.00021095,3]
[347315038,1735681841908,-500.0,0.00021095,3]
[347315040,1735681841918,-500.0,0.00021095,3]
[347315042,1735681841927,-501.98,0.00021095,3]
[347315045,1735681841941,-795.01,0.00021095,3]
[347315047,1735681841949,-730.1,0.00021095,3]
[347315049,1735681841958,-20519.54,0.00021095,3]
[347315050,1735681841967,-500.0,0.00021095,3]
[347315052,1735681841976,-500.0,0.00021095,3]
[347315054,1735681841986,-836.29,0.00021095,3]
[347315057,1735681841996,-500.0,0.00021095,3]
[347315059,1735681842005,-500.0,0.00021095,3]
[347315061,1735681842017,-926.38,0.00021095,3]
[347315062,1735681842026,-683.0,0.00021095,3]
[347315064,1735681842036,-715.77,0.00021095,3]
[347315067,1735681842045,-511.31,0.00021095,3]
[347315069,1735681842055,-500.0,0.00021095,3]
[347315071,1735681842065,-1211.93,0.00021095,3]
[347315072,1735681842074,-521.15,0.00021095,3]
[347315075,1735681842084,-500.0,0.00021095,3]
[347315076,1735681842093,-802.62,0.00021095,3]
[347315078,1735681842102,-2700.84,0.00021095,3]
[347315081,1735681842111,-500.0,0.00021095,3]
[347315082,1735681842120,-500.0,0.00021095,3]
[347315084,1735681842129,-500.0,0.00021095,3]
[347315087,1735681842139,-612.25,0.00021095,3]
[347315088,1735681842148,-500.0,0.00021095,3]
[347315090,1735681842157,-500.0,0.00021095,3]
[347315092,1735681842166,-4674.97,0.00021095,3]
[347315095,1735681842175,-500.0,0.00021095,3]
[347315096,1735681842184,-522.2,0.00021095,3]
[347315098,1735681842193,-618.94,0.00021095,3]
[347315100,1735681842203,-500.0,0.00021095,3]
[347315102,1735681842212,-2189.99,0.00021095,3]
[347315104,1735681842221,-791.33,0.00021095,3]
[347315106,1735681842230,-500.0,0.00021095,3]
[347315108,1735681842239,-500.0,0.00021095,3]
[347315110,1735681842248,-1039.41,0.00021095,3]
[347315112,1735681842257,-1645.65,0.00021095,3]
[347315114,1735681842266,-500.0,0.00021095,3]
[347315116,1735681842275,-500.0,0.00021095,3]
[347315118,1735681842284,-500.0,0.00021095,3]
[347315120,1735681842294,-500.0,0.00021095,3]
[347315122,1735681842303,-1047.88,0.00021095,3]
[347315124,1735681842313,-500.0,0.00021095,3]
[347315126,1735681842321,-500.0,0.00021095,3]
[347315128,1735681842331,-2742.12,0.00021095,3]
[347315130,1735681842339,-4620.02,0.00021095,3]
[347315132,1735681842348,-687.66,0.000211,2]
[347315134,1735681842358,-465.02988066,0.00021147,2]
[347315136,1735681842367,-10189.67419014,0.00021166,2]
[347315138,1735681842376,-158.281406,0.00021288,2]
[347315140,1735681842385,-10189.67419014,0.0002134,2]
[347315142,1735681842394,-500.0,0.00021369,3]
[347315144,1735681842403,-500.0,0.00021369,3]
[347315146,1735681842412,-500.0,0.00021369,3]
[347315148,1735681842421,-500.0,0.00021369,3]
[347315150,1735681842432,-500.0,0.00021369,3]
[347315152,1735681842441,-600.3,0.00021369,3]
[347315154,1735681842450,-500.0,0.00021369,3]
[347315156,1735681842459,-500.0,0.00021369,3]
[347315158,1735681842468,-2869.51,0.00021369,3]
[347315160,1735681842478,-500.0,0.00021369,3]
[347315162,1735681842486,-500.0,0.00021369,3]
[347315164,1735681842495,-500.0,0.00021369,3]
[347315166,1735681842504,-500.0,0.00021369,3]
[347315168,1735681842513,-535.38,0.00021369,3]
[347315170,1735681842523,-500.0,0.00021369,3]
[347315172,1735681842532,-1371.67,0.00021369,3]
[347315174,1735681842541,-501.04,0.00021369,3]
[347315176,1735681842550,-598.98,0.00021369,3]
[347315178,1735681842559,-500.0,0.00021369,3]
[347315180,1735681842568,-548.87,0.00021369,3]
[347315182,1735681842578,-200.13778388,0.00021369,3]
[347315184,1735681842587,-500.0,0.00021369,3]
[347315186,1735681842596,-730.65,0.00021369,3]
[347315187,1735681842606,-530.04,0.00021369,3]
[347315188,1735681842615,-500.0,0.00021369,3]
[347315189,1735681842624,-500.0,0.00021369,3]
[347315190,1735681842635,-500.0,0.00021369,3]
[347315191,1735681842644,-500.0,0.00021369,3]
[347315192,1735681842653,-500.0,0.00021369,3]
[347315193,1735681842662,-1588.43,0.00021369,3]
[347315194,1735681842671,-500.0,0.00021369,3]
[347315195,1735681842682,-500.0,0.00021369,3]
[347315196,1735681842691,-500.0,0.00021369,3]
[347315197,1735681842700,-500.0,0.00021369,3]
[347315198,1735681842709,-500.0,0.00021369,3]
[347315199,1735681842718,-501.98,0.00021369,3]
[347315200,1735681842727,-795.01,0.00021369,3]
[347315201,1735681842736,-730.1,0.00021369,3]
[347315202,1735681842745,-20519.54,0.00021369,3]
[347315205,1735681842851,-500.0,0.00021369,3]
[347315207,1735681842860,-500.0,0.00021369,3]
[347315209,1735681842869,-836.29,0.00021369,3]
[347315212,1735681842879,-500.0,0.00021369,3]
[347315214,1735681842888,-500.0,0.00021369,3]
[347315216,1735681842898,-926.38,0.00021369,3]
[347315218,1735681842908,-683.0,0.00021369,3]
[347315220,1735681842917,-715.77,0.00021369,3]
[347315222,1735681842927,-511.31,0.00021369,3]
[347315224,1735681842939,-500.0,0.00021369,3]
[347315226,1735681842948,-1211.93,0.00021369,3]
[347315228,1735681842957,-521.15,0.00021369,3]
[347315230,1735681842966,-500.0,0.00021369,3]
[347315232,1735681842976,-802.62,0.00021369,3]
[347315233,1735681842986,-2700.84,0.00021369,3]
[347315234,1735681842995,-500.0,0.00021369,3]
[347315235,1735681843004,-500.0,0.00021369,3]
[347315236,1735681843014,-500.0,0.00021369,3]
[347315237,1735681843023,-612.25,0.00021369,3]
[347315238,1735681843033,-500.0,0.00021369,3]
[347315239,1735681843042,-500.0,0.00021369,3]
[347315240,1735681843051,-4674.97,0.00021369,3]